[Event "Icelandic Team-ch Kvika Leagu 2023-24"]
[Site "Reykjavik"]
[Date "2024.03.03"]
[Round "10"]
[White "Steingrimsson, Hedinn"]
[Black "Olafsson, Thorvardur"]
[Result "1-0"]
[ECO "A16"]
[WhiteElo "2477"]
[BlackElo "2105"]
[Annotator "RC"]
[PlyCount "103"]
[EventDate "2024.02.29"]
[EventType "team-tourn"]
[EventCountry "ISL"]
[SourceTitle "playchess.com"]
[Source "ChessBase"]
[SourceQuality "1"]
[TimeControl "40/5400+30:900+30"]

1. Nf3 {[%emt 0:00:30]} Nf6 {[%emt 0:04:56]} 2. c4 {[%emt 0:00:50]} g6 {[%emt 0:01:31]} 3. Nc3 {[%emt 0:02:13]} d5 {[%emt 0:03:45]} 4. cxd5 {[%emt 0:00:41]} Nxd5 {[%emt 0:00:18]} 5. h4 {[%emt 0:05:23]} h6 {[%emt 0:06:02]} 6. e4 {[%emt 0:05:04]} Nb6 {[%emt 0:01:58]} 7. d4 {[%emt 0:01:35]} Bg7 {[%emt 0:04:32]} 8. Be3 {[%emt 0:03:38]} Nc6 {[%emt 0:03:28]} 9. Qd2 {[%emt 0:03:05]} e5 {[%emt 0:20:52]} 10. Bb5 {[%emt 0:09:21]} Bd7 {[%emt 0:02:56]} 11. Bxc6 {[%emt 0:11:28]} Bxc6 {[%emt 0:00:30]} 12. Nxe5 {[%emt 0:00:04]} Bxe5 {[%emt 0:00:43]} 13. dxe5 {[%emt 0:00:03]} Qxd2+ {[%emt 0:00:26]} 14. Bxd2 {[%emt 0:02:00]} Nc4 {[%emt 0:00:46]} 15. O-O-O {[%emt 0:00:30]} Nxe5 {[%emt 0:01:50]} 16. Bf4 {[%emt 0:01:52]} f6 {[%emt 0:09:33]} 17. Nd5 {[%emt 0:07:32]} Bxd5 {[%emt 0:02:59]} 18. Rxd5 {[%emt 0:04:25]} Nd7 {[%emt 0:07:10]} 19. h5 {[%emt 0:08:07]} g5 {[%emt 0:01:03]} 20. Bd2 {[%emt 0:00:05]} Ke7 {[%emt 0:10:56]} 21. Rd1 {[%emt 0:08:06]} Nb6 {[%emt 0:00:00]} 22. Ra5 {[%emt 0:04:40]} Ke6 {[%emt 0:01:03]} 23. Bc3 {[%emt 0:02:39]} a6 {[%emt 0:03:14]} 24. Rd3 {[%emt 0:00:57]} Rhf8 {[%emt 0:02:09]} 25. Kc2 {[%emt 0:02:20]} Rad8 {[%emt 0:01:35]} 26. Rf3 {[%emt 0:00:35]} Nd7 {[%emt 0:03:59]} 27. Raf5 {[%emt 0:00:54]} Rde8 {[%emt 0:01:37]} 28. a4 {[%emt 0:00:34]} Rd8 {[%emt 0:00:28]} 29. a5 {[%emt 0:01:25]} Rde8 {[%emt 0:00:20]} 30. Bd4 {[%emt 0:01:00]} Rc8 {[%emt 0:02:46]} 31. Kd2 {[%emt 0:03:11]} c5 {[%emt 0:01:30]} 32. Bc3 {[%emt 0:00:03]} Rcd8 {[%emt 0:00:50]} 33. Ke2 {[%emt 0:00:09]} Rc8 {[%emt 0:00:30]} 34. Rd5 {[%emt 0:01:40]} Rc6 {[%emt 0:00:31]} 35. Rfd3 {[%emt 0:01:49]} Rf7 {[%emt 0:00:10]} 36. f3 {[%emt 0:00:21]} Ne5 {[%emt 0:00:58]} 37. Bxe5 {[%emt 0:00:54]} fxe5 {[%emt 0:00:02]} 38. Rd8 {[%emt 0:00:02]} Kf6 {[%emt 0:01:01]} 39. Rg8 {[%emt 0:00:14]} Ke7 {[%emt 0:00:31]} 40. Rdd8 {[%emt 0:00:00]} c4 {[%emt 0:00:00]} 41. Rde8+ {[%emt 0:02:46]} Kd6 {[%emt 0:01:32]} 42. Rg6+ {[%emt 0:01:13]} Kd7 {[%emt 0:00:08]} 43. Rxe5 {[%emt 0:10:34]} Rxg6 {[%emt 0:02:05]} 44. hxg6 {[%emt 0:00:02]} Rg7 {[%emt 0:00:12]} 45. Rc5 {[%emt 0:00:28]} Rxg6 {[%emt 0:01:54]} 46. Rxc4 {[%emt 0:00:28]} h5 {[%emt 0:01:54]} 47. Rc5 {[%emt 0:00:37]} h4 {[%emt 0:01:10]} 48. Kf2 {[%emt 0:00:04]} Kd6 {[%emt 0:01:12]} 49. b4 {[%emt 0:04:34]} Rg7 {[%emt 0:01:21]} 50. g3 {[%emt 0:00:49]} g4 {[%emt 0:03:42]} 51. gxh4 {[%emt 0:00:21]} Rf7 {[%emt 0:01:07]} 52. Rf5 {[%emt 0:00:15]} 1-0

[Event "Icelandic Team-ch Kvika Leagu 2023-24"]
[Site "Reykjavik"]
[Date "2024.03.03"]
[Round "10"]
[White "Stefansson, Vignir Vatnar"]
[Black "Pantzar, Milton"]
[Result "0-1"]
[ECO "B12"]
[WhiteElo "2464"]
[BlackElo "2472"]
[Annotator "RC"]
[PlyCount "94"]
[EventDate "2024.02.29"]
[EventType "team-tourn"]
[EventCountry "ISL"]
[SourceTitle "playchess.com"]
[Source "ChessBase"]
[SourceQuality "1"]
[TimeControl "40/5400+30:900+30"]

1. e4 {[%emt 0:02:58]} c6 {[%emt 0:00:07]} 2. d4 {[%emt 0:01:32]} d5 {[%emt 0:00:07]} 3. e5 {[%emt 0:00:06]} c5 {[%emt 0:01:29]} 4. Nf3 {[%emt 0:00:55]} cxd4 {[%emt 0:00:09]} 5. Qxd4 {[%emt 0:00:13]} Nc6 {[%emt 0:00:12]} 6. Qf4 {[%emt 0:00:06]} e6 {[%emt 0:06:29]} 7. Bd3 {[%emt 0:01:14]} Nb4 {[%emt 0:04:58]} 8. Bd2 {[%emt 0:00:24]} Nxd3+ {[%emt 0:02:29]} 9. cxd3 {[%emt 0:01:58]} h5 {[%emt 0:08:17]} 10. Nc3 {[%emt 0:08:00]} Bd7 {[%emt 0:03:14]} 11. a4 {[%emt 0:11:13]} Ne7 {[%emt 0:06:36]} 12. Ne2 {[%emt 0:08:25]} Ng6 {[%emt 0:06:55]} 13. Qg3 {[%emt 0:02:34]} d4 {[%emt 0:09:43]} 14. Nexd4 {[%emt 0:09:52]} Be7 {[%emt 0:03:39]} 15. h4 {[%emt 0:05:04]} O-O {[%emt 0:04:45]} 16. Ng5 {[%emt 0:09:10]} Qb6 {[%emt 0:14:36]} 17. Bc3 {[%emt 0:01:33]} Qc5 {[%emt 0:06:07]} 18. f4 {[%emt 0:01:18]} Qd5 {[%emt 0:02:37]} 19. Ne4 {[%emt 0:02:00]} Rfd8 {[%emt 0:03:28]} 20. Ke2 {[%emt 0:11:42]} b5 {[%emt 0:03:21]} 21. axb5 {[%emt 0:02:03]} Bxb5 {[%emt 0:00:09]} 22. Nd2 {[%emt 0:02:26]} a6 {[%emt 0:05:43]} 23. Rad1 {[%emt 0:11:45]} Bc5 {[%emt 0:01:07]} 24. Nxb5 {[%emt 0:00:23]} axb5 {[%emt 0:01:42]} 25. Ne4 {[%emt 0:00:42]} b4 {[%emt 0:00:45]} 26. Bd2 {[%emt 0:00:43]} Ra2 {[%emt 0:01:05]} 27. Rb1 {[%emt 0:00:03]} Bd4 {[%emt 0:01:14]} 28. Bxb4 {[%emt 0:00:41]} Bxb2 {[%emt 0:00:17]} 29. Bd2 {[%emt 0:01:03]} Nxf4+ {[%emt 0:01:20]} 30. Kf1 {[%emt 0:04:40]} Bxe5 {[%emt 0:01:32]} 31. Bxf4 {[%emt 0:00:41]} Bxf4 {[%emt 0:00:15]} 32. Nf6+ {[%emt 0:00:23]} Kh8 {[%emt 0:00:40]} 33. Nxd5 {[%emt 0:00:06]} Bxg3 {[%emt 0:00:10]} 34. Rh3 {[%emt 0:00:06]} Rf2+ {[%emt 0:01:28]} 35. Kg1 {[%emt 0:00:03]} Rxd5 {[%emt 0:00:07]} 36. Rxg3 {[%emt 0:00:03]} Rf4 {[%emt 0:00:19]} 37. Rf1 {[%emt 0:00:16]} Rxf1+ {[%emt 0:00:32]} 38. Kxf1 {[%emt 0:00:04]} g6 {[%emt 0:00:44]} 39. Re3 {[%emt 0:00:16]} Kg7 {[%emt 0:00:32]} 40. g3 {[%emt 0:00:00]} Kf6 {[%emt 0:00:00]} 41. Kg2 {[%emt 0:01:13]} e5 {[%emt 0:02:39]} 42. Rf3+ {[%emt 0:00:54]} Ke6 {[%emt 0:00:15]} 43. Kf2 {[%emt 0:00:25]} Rd4 {[%emt 0:01:19]} 44. Ke2 {[%emt 0:01:01]} Rg4 {[%emt 0:00:16]} 45. Re3 {[%emt 0:02:07]} Kd5 {[%emt 0:01:33]} 46. Rf3 {[%emt 0:02:14]} f5 {[%emt 0:00:39]} 47. Ke3 {[%emt 0:00:03]} Rxg3 {[%emt 0:00:00]} 0-1

[Event "Icelandic Team-ch Kvika Leagu 2023-24"]
[Site "Reykjavik"]
[Date "2024.03.03"]
[Round "10"]
[White "Hjartarson, Johann"]
[Black "Domalchuk-Jonasson, Aleksandr"]
[Result "1/2-1/2"]
[ECO "C42"]
[WhiteElo "2460"]
[BlackElo "2355"]
[Annotator "RC"]
[PlyCount "39"]
[EventDate "2024.02.29"]
[EventType "team-tourn"]
[EventCountry "ISL"]
[SourceTitle "playchess.com"]
[Source "ChessBase"]
[SourceQuality "1"]
[TimeControl "40/5400+30:900+30"]

1. e4 {[%emt 0:05:41]} e5 {[%emt 0:00:14]} 2. Nf3 {[%emt 0:00:47]} Nf6 {[%emt 0:00:06]} 3. Nxe5 {[%emt 0:02:04]} d6 {[%emt 0:00:04]} 4. Nd3 {[%emt 0:00:09]} Nxe4 {[%emt 0:00:21]} 5. Qe2 {[%emt 0:00:06]} Qe7 {[%emt 0:00:03]} 6. Nf4 {[%emt 0:00:07]} Nc6 {[%emt 0:00:29]} 7. c3 {[%emt 0:00:16]} Nf6 {[%emt 0:00:16]} 8. d4 {[%emt 0:00:24]} g5 {[%emt 0:00:09]} 9. Nd3 {[%emt 0:01:27]} Rg8 {[%emt 0:00:11]} 10. Na3 {[%emt 0:07:12]} Bf5 {[%emt 0:11:55]} 11. f3 {[%emt 0:01:31]} O-O-O {[%emt 0:01:55]} 12. Qxe7 {[%emt 0:01:13]} Nxe7 {[%emt 0:01:37]} 13. g4 {[%emt 0:01:09]} Bd7 {[%emt 0:02:14]} 14. Bg2 {[%emt 0:05:12]} h5 {[%emt 0:10:56]} 15. h3 {[%emt 0:00:30]} hxg4 {[%emt 0:16:16]} 16. hxg4 {[%emt 0:00:50]} Ne8 {[%emt 0:01:05]} 17. Bd2 {[%emt 0:11:06]} f5 {[%emt 0:02:39]} 18. gxf5 {[%emt 0:00:14]} Bxf5 {[%emt 0:04:27]} 19. Nf2 {[%emt 0:00:34]} Nf6 {[%emt 0:04:16]} 20. O-O-O {[%emt 0:01:10]} 1/2-1/2

[Event "Icelandic Team-ch Kvika Leagu 2023-24"]
[Site "Reykjavik"]
[Date "2024.03.03"]
[Round "10"]
[White "Sulypa, Oleksandr"]
[Black "Thorfinnsson, Bragi"]
[Result "1/2-1/2"]
[ECO "E11"]
[WhiteElo "2457"]
[BlackElo "2397"]
[Annotator "RC"]
[PlyCount "31"]
[EventDate "2024.02.29"]
[EventType "team-tourn"]
[EventCountry "ISL"]
[SourceTitle "playchess.com"]
[Source "ChessBase"]
[SourceQuality "1"]
[TimeControl "40/5400+30:900+30"]

1. d4 {[%emt 0:00:02]} Nf6 {[%emt 0:03:43]} 2. c4 {[%emt 0:00:06]} e6 {[%emt 0:00:36]} 3. Nf3 {[%emt 0:00:06]} Bb4+ {[%emt 0:02:55]} 4. Bd2 {[%emt 0:00:09]} c5 {[%emt 0:02:54]} 5. Bxb4 {[%emt 0:06:26]} cxb4 {[%emt 0:00:26]} 6. g3 {[%emt 0:03:49]} O-O {[%emt 0:12:15]} 7. Bg2 {[%emt 0:00:30]} d5 {[%emt 0:02:51]} 8. Nbd2 {[%emt 0:01:15]} Nc6 {[%emt 0:01:19]} 9. O-O {[%emt 0:18:39]} Re8 {[%emt 0:07:47]} 10. Qc2 {[%emt 0:19:24]} Qb6 {[%emt 0:21:01]} 11. e3 {[%emt 0:02:48]} a5 {[%emt 0:00:37]} 12. Rac1 {[%emt 0:06:43]} h6 {[%emt 0:05:22]} 13. c5 {[%emt 0:01:49]} Qd8 {[%emt 0:01:51]} 14. Rfd1 {[%emt 0:03:47]} Bd7 {[%emt 0:02:41]} 15. h3 {[%emt 0:07:57]} Rc8 {[%emt 0:06:40]} 16. Qd3 {[%emt 0:07:23]} 1/2-1/2

[Event "Icelandic Team-ch Kvika Leagu 2023-24"]
[Site "Reykjavik"]
[Date "2024.03.03"]
[Round "10"]
[White "Heimisson, Hilmir Freyr"]
[Black "Kazakouski, Valery"]
[Result "0-1"]
[ECO "B89"]
[WhiteElo "2355"]
[BlackElo "2608"]
[Annotator "RC"]
[PlyCount "138"]
[EventDate "2024.02.29"]
[EventType "team-tourn"]
[EventCountry "ISL"]
[SourceTitle "playchess.com"]
[Source "ChessBase"]
[SourceQuality "1"]
[TimeControl "40/5400+30:900+30"]

1. e4 {[%emt 0:05:03]} c5 {[%emt 0:00:45]} 2. Nf3 {[%emt 0:00:10]} d6 {[%emt 0:00:08]} 3. d4 {[%emt 0:00:09]} cxd4 {[%emt 0:00:08]} 4. Nxd4 {[%emt 0:00:04]} Nf6 {[%emt 0:00:12]} 5. Nc3 {[%emt 0:00:08]} Nc6 {[%emt 0:02:42]} 6. Bc4 {[%emt 0:00:09]} e6 {[%emt 0:04:21]} 7. Be3 {[%emt 0:00:11]} a6 {[%emt 0:00:15]} 8. Qe2 {[%emt 0:00:53]} Be7 {[%emt 0:05:56]} 9. Bb3 {[%emt 0:02:45]} Na5 {[%emt 0:01:50]} 10. O-O-O {[%emt 0:08:24]} Qc7 {[%emt 0:01:01]} 11. g4 {[%emt 0:06:33]} Nxb3+ {[%emt 0:04:36]} 12. axb3 {[%emt 0:00:23]} g6 {[%emt 0:02:32]} 13. g5 {[%emt 0:06:30]} Nh5 {[%emt 0:03:01]} 14. Kb1 {[%emt 0:05:02]} b5 {[%emt 0:02:06]} 15. f4 {[%emt 0:12:17]} b4 {[%emt 0:03:15]} 16. Na4 {[%emt 0:02:02]} Bb7 {[%emt 0:04:17]} 17. Qd3 {[%emt 0:01:32]} O-O {[%emt 0:04:57]} 18. Rhe1 {[%emt 0:01:56]} e5 {[%emt 0:07:47]} 19. Ne2 {[%emt 0:04:27]} f5 {[%emt 0:01:48]} 20. fxe5 {[%emt 0:11:50]} fxe4 {[%emt 0:01:41]} 21. Qc4+ {[%emt 0:00:53]} Qxc4 {[%emt 0:00:57]} 22. bxc4 {[%emt 0:00:02]} dxe5 {[%emt 0:02:21]} 23. Rd7 {[%emt 0:01:38]} Bc6 {[%emt 0:01:13]} 24. Rxe7 {[%emt 0:00:06]} Bxa4 {[%emt 0:00:06]} 25. Rxe5 {[%emt 0:00:36]} b3 {[%emt 0:02:36]} 26. cxb3 {[%emt 0:02:45]} Bxb3 {[%emt 0:01:59]} 27. Rxe4 {[%emt 0:03:01]} Rae8 {[%emt 0:00:54]} 28. Rxe8 {[%emt 0:02:28]} Rxe8 {[%emt 0:00:05]} 29. Ng3 {[%emt 0:01:14]} Nf4 {[%emt 0:02:20]} 30. Bd2 {[%emt 0:01:10]} Rxe1+ {[%emt 0:00:13]} 31. Bxe1 {[%emt 0:00:05]} Bxc4 {[%emt 0:00:08]} 32. Kc2 {[%emt 0:00:52]} Bb5 {[%emt 0:02:28]} 33. Kc3 {[%emt 0:06:10]} Kf7 {[%emt 0:01:04]} 34. Bd2 {[%emt 0:00:24]} Nd3 {[%emt 0:03:07]} 35. Ne4 {[%emt 0:02:03]} Ke6 {[%emt 0:03:01]} 36. Be3 {[%emt 0:00:49]} Ne5 {[%emt 0:03:28]} 37. Nf6 {[%emt 0:04:09]} Kf5 {[%emt 0:02:01]} 38. Nxh7 {[%emt 0:00:35]} Nf3 {[%emt 0:01:15]} 39. h3 {[%emt 0:04:25]} Bf1 {[%emt 0:00:22]} 40. Kb4 {[%emt 0:00:00]} Bxh3 {[%emt 0:00:00]} 41. Ka5 {[%emt 0:02:52]} Bf1 {[%emt 0:00:35]} 42. Kb6 {[%emt 0:00:29]} Ne5 {[%emt 0:01:00]} 43. Kc7 {[%emt 0:00:42]} Nc4 {[%emt 0:06:52]} 44. Bc1 {[%emt 0:00:20]} Ne5 {[%emt 0:02:39]} 45. Be3 {[%emt 0:00:01]} Bc4 {[%emt 0:00:38]} 46. Kd8 {[%emt 0:02:16]} Bg8 {[%emt 0:01:17]} 47. Nf6 {[%emt 0:00:08]} Bb3 {[%emt 0:00:08]} 48. Nh7 {[%emt 0:00:17]} a5 {[%emt 0:01:45]} 49. Ke7 {[%emt 0:01:22]} a4 {[%emt 0:04:20]} 50. Nf8 {[%emt 0:11:01]} Nd3 {[%emt 0:01:11]} 51. Bd4 {[%emt 0:01:31]} Kxg5 {[%emt 0:00:19]} 52. Nd7 {[%emt 0:01:32]} Kf5 {[%emt 0:03:21]} 53. Nc5 {[%emt 0:00:22]} Nf4 {[%emt 0:05:12]} 54. Kd6 {[%emt 0:00:04]} g5 {[%emt 0:00:09]} 55. Kc6 {[%emt 0:00:47]} g4 {[%emt 0:01:47]} 56. Bf2 {[%emt 0:00:01]} Ne2 {[%emt 0:08:13]} 57. Kb5 {[%emt 0:01:55]} Kf4 {[%emt 0:00:54]} 58. Nxa4 {[%emt 0:00:58]} Kf3 {[%emt 0:00:21]} 59. Bh4 {[%emt 0:00:41]} Nd4+ {[%emt 0:00:59]} 60. Kb4 {[%emt 0:00:31]} Nf5 {[%emt 0:02:41]} 61. Bd8 {[%emt 0:01:59]} Bxa4 {[%emt 0:01:56]} 62. Kxa4 {[%emt 0:00:14]} g3 {[%emt 0:00:02]} 63. Bc7 {[%emt 0:00:27]} g2 {[%emt 0:00:16]} 64. Bh2 {[%emt 0:00:05]} Kf2 {[%emt 0:00:49]} 65. b4 {[%emt 0:02:07]} Nd4 {[%emt 0:00:08]} 66. b5 {[%emt 0:00:19]} Nf3 {[%emt 0:00:05]} 67. Bd6 {[%emt 0:01:13]} Ke3 {[%emt 0:00:23]} 68. b6 {[%emt 0:00:40]} g1=Q {[%emt 0:00:19]} 69. Bc5+ {[%emt 0:00:35]} Nd4 {[%emt 0:00:07]} 0-1

[Event "Icelandic Team-ch Kvika Leagu 2023-24"]
[Site "Reykjavik"]
[Date "2024.03.03"]
[Round "10"]
[White "Thorfinnsson, Bjorn"]
[Black "Petursson, Margeir"]
[Result "1/2-1/2"]
[ECO "D03"]
[WhiteElo "2353"]
[BlackElo "2408"]
[Annotator "ChessBase"]
[PlyCount "60"]
[EventDate "2024.02.29"]
[EventType "team-tourn"]
[EventCountry "ISL"]
[SourceTitle "playchess.com"]
[Source "ChessBase"]
[SourceQuality "1"]
[TimeControl "40/5400+30:900+30"]

1. d4 {[%emt 0:06:27]} Nf6 {[%emt 0:00:07]} 2. Nf3 {[%emt 0:00:13]} e6 {[%emt 0:00:06]} 3. Bg5 {[%emt 0:00:13]} c5 {[%emt 0:00:21]} 4. e3 {[%emt 0:00:27]} d5 {[%emt 0:00:41]} 5. c3 {[%emt 0:00:32]} Bd6 {[%emt 0:00:23]} 6. Nbd2 {[%emt 0:05:49]} Nbd7 {[%emt 0:02:02]} 7. Bd3 {[%emt 0:00:41]} Qc7 {[%emt 0:02:13]} 8. e4 {[%emt 0:02:05]} cxd4 {[%emt 0:04:34]} 9. Nxd4 {[%emt 0:01:57]} a6 {[%emt 0:00:54]} 10. exd5 {[%emt 0:05:36]} Nxd5 {[%emt 0:03:47]} 11. Nc4 {[%emt 0:00:12]} Bf4 {[%emt 0:07:00]} 12. Bxf4 {[%emt 0:06:01]} Nxf4 {[%emt 0:01:19]} 13. O-O {[%emt 0:02:06]} O-O {[%emt 0:03:43]} 14. Ne3 {[%emt 0:03:59]} Nc5 {[%emt 0:04:57]} 15. Bc2 {[%emt 0:08:33]} e5 {[%emt 0:07:02]} 16. Nb3 {[%emt 0:02:53]} Be6 {[%emt 0:03:25]} 17. Nxc5 {[%emt 0:03:52]} Qxc5 {[%emt 0:00:03]} 18. Qf3 {[%emt 0:00:41]} b5 {[%emt 0:04:41]} 19. Rfd1 {[%emt 0:05:34]} Rad8 {[%emt 0:02:28]} 20. Rxd8 {[%emt 0:07:32]} Rxd8 {[%emt 0:00:05]} 21. Rd1 {[%emt 0:00:09]} Rxd1+ {[%emt 0:00:58]} 22. Qxd1 {[%emt 0:00:17]} g6 {[%emt 0:00:39]} 23. Bb3 {[%emt 0:03:40]} Bxb3 {[%emt 0:02:43]} 24. axb3 {[%emt 0:02:16]} Qc6 {[%emt 0:05:02]} 25. g3 {[%emt 0:01:57]} Nh3+ {[%emt 0:06:00]} 26. Kf1 {[%emt 0:00:51]} Qh1+ {[%emt 0:00:59]} 27. Ke2 {[%emt 0:00:04]} Ng1+ {[%emt 0:00:21]} 28. Kf1 {[%emt 0:01:43]} Nf3+ {[%emt 0:04:07]} 29. Ke2 {[%emt 0:00:08]} Ng1+ {[%emt 0:00:38]} 30. Kf1 {[%emt 0:00:06]} Nf3+ {[%emt 0:00:23]} 1/2-1/2

[Event "Icelandic Team-ch Kvika Leagu 2023-24"]
[Site "Reykjavik"]
[Date "2024.03.03"]
[Round "10"]
[White "Bjornsson, Sigurbjorn"]
[Black "Sverrisson, Nokkvi"]
[Result "1-0"]
[ECO "B47"]
[WhiteElo "2305"]
[BlackElo "2052"]
[Annotator "RC"]
[PlyCount "69"]
[EventDate "2024.02.29"]
[EventType "team-tourn"]
[EventCountry "ISL"]
[SourceTitle "playchess.com"]
[Source "ChessBase"]
[SourceQuality "1"]
[TimeControl "40/5400+30:900+30"]

1. e4 {[%emt 0:00:02]} c5 {[%emt 0:00:08]} 2. Nf3 {[%emt 0:00:04]} e6 {[%emt 0:00:07]} 3. d4 {[%emt 0:00:04]} cxd4 {[%emt 0:00:06]} 4. Nxd4 {[%emt 0:00:03]} Nc6 {[%emt 0:00:10]} 5. Nc3 {[%emt 0:00:11]} Qc7 {[%emt 0:00:09]} 6. g3 {[%emt 0:00:20]} a6 {[%emt 0:04:04]} 7. Bg2 {[%emt 0:00:27]} Nf6 {[%emt 0:01:39]} 8. O-O {[%emt 0:00:26]} Nxd4 {[%emt 0:03:16]} 9. Qxd4 {[%emt 0:00:05]} Bc5 {[%emt 0:00:14]} 10. Bf4 {[%emt 0:00:15]} d6 {[%emt 0:01:42]} 11. Qd2 {[%emt 0:00:05]} O-O {[%emt 0:21:16]} 12. Rad1 {[%emt 0:01:42]} e5 {[%emt 0:00:26]} 13. Bg5 {[%emt 0:00:20]} Be6 {[%emt 0:03:54]} 14. Bxf6 {[%emt 0:00:55]} gxf6 {[%emt 0:00:07]} 15. Qh6 {[%emt 0:01:22]} Bd4 {[%emt 0:08:17]} 16. Rxd4 {[%emt 0:12:10]} exd4 {[%emt 0:00:09]} 17. Ne2 {[%emt 0:00:04]} Qc5 {[%emt 0:04:20]} 18. h4 {[%emt 0:01:03]} Bg4 {[%emt 0:16:00]} 19. Nf4 {[%emt 0:02:20]} Rfe8 {[%emt 0:01:13]} 20. Nd5 {[%emt 0:03:00]} Re6 {[%emt 0:00:12]} 21. b4 {[%emt 0:04:24]} Qxc2 {[%emt 0:05:17]} 22. f3 {[%emt 0:00:56]} f5 {[%emt 0:06:14]} 23. Nf6+ {[%emt 0:07:59]} Rxf6 {[%emt 0:00:31]} 24. Qxf6 {[%emt 0:00:01]} Bh5 {[%emt 0:06:57]} 25. Qg5+ {[%emt 0:06:33]} Bg6 {[%emt 0:00:24]} 26. h5 {[%emt 0:01:16]} h6 {[%emt 0:01:58]} 27. Qxh6 {[%emt 0:00:24]} Bh7 {[%emt 0:00:03]} 28. Qf6 {[%emt 0:04:05]} Re8 {[%emt 0:05:03]} 29. h6 {[%emt 0:00:39]} Kf8 {[%emt 0:00:04]} 30. Qxd6+ {[%emt 0:00:53]} Re7 {[%emt 0:00:12]} 31. Qd8+ {[%emt 0:02:20]} Re8 {[%emt 0:00:09]} 32. Qxd4 {[%emt 0:00:43]} Bg6 {[%emt 0:03:08]} 33. Qg7+ {[%emt 0:00:37]} Ke7 {[%emt 0:00:05]} 34. h7 {[%emt 0:00:21]} Qc8 {[%emt 0:00:04]} 35. Qe5+ {[%emt 0:00:05]} 1-0

[Event "Icelandic Team-ch Kvika Leagu 2023-24"]
[Site "Reykjavik"]
[Date "2024.03.03"]
[Round "10"]
[White "O`Donnell, Conor"]
[Black "Johannesson, Ingvar Thor"]
[Result "0-1"]
[ECO "D38"]
[WhiteElo "2284"]
[BlackElo "2313"]
[Annotator "RC"]
[PlyCount "102"]
[EventDate "2024.02.29"]
[EventType "team-tourn"]
[EventCountry "ISL"]
[SourceTitle "playchess.com"]
[Source "ChessBase"]
[SourceQuality "1"]
[TimeControl "40/5400+30:900+30"]

1. d4 {[%emt 0:03:47]} Nf6 {[%emt 0:00:13]} 2. c4 {[%emt 0:00:06]} e6 {[%emt 0:00:46]} 3. Nf3 {[%emt 0:01:02]} d5 {[%emt 0:00:30]} 4. Nc3 {[%emt 0:00:44]} Nbd7 {[%emt 0:01:43]} 5. Bg5 {[%emt 0:01:32]} Bb4 {[%emt 0:00:37]} 6. e3 {[%emt 0:01:23]} c5 {[%emt 0:00:24]} 7. cxd5 {[%emt 0:01:18]} exd5 {[%emt 0:00:38]} 8. Bd3 {[%emt 0:00:13]} Qa5 {[%emt 0:01:04]} 9. O-O {[%emt 0:00:33]} c4 {[%emt 0:04:46]} 10. Bf5 {[%emt 0:00:39]} Bxc3 {[%emt 0:04:36]} 11. bxc3 {[%emt 0:00:15]} Ne4 {[%emt 0:15:18]} 12. Qc2 {[%emt 0:11:09]} Ndf6 {[%emt 0:04:41]} 13. Bxc8 {[%emt 0:01:24]} Rxc8 {[%emt 0:01:38]} 14. Bxf6 {[%emt 0:01:07]} Nxf6 {[%emt 0:00:40]} 15. Nd2 {[%emt 0:04:04]} O-O {[%emt 0:02:51]} 16. f3 {[%emt 0:04:14]} Rfe8 {[%emt 0:06:39]} 17. e4 {[%emt 0:02:55]} Nh5 {[%emt 0:04:28]} 18. e5 {[%emt 0:09:02]} Nf4 {[%emt 0:00:38]} 19. Kh1 {[%emt 0:02:42]} f6 {[%emt 0:09:51]} 20. exf6 {[%emt 0:05:43]} Nd3 {[%emt 0:00:27]} 21. Nb3 {[%emt 0:14:02]} Qb6 {[%emt 0:20:04]} 22. Nc1 {[%emt 0:09:11]} Qb2 {[%emt 0:00:32]} 23. Qxb2 {[%emt 0:01:17]} Nxb2 {[%emt 0:00:02]} 24. Rb1 {[%emt 0:05:56]} Na4 {[%emt 0:04:07]} 25. Rxb7 {[%emt 0:00:04]} gxf6 {[%emt 0:00:04]} 26. Kg1 {[%emt 0:04:56]} Nxc3 {[%emt 0:00:47]} 27. Rxa7 {[%emt 0:06:19]} Rb8 {[%emt 0:00:25]} 28. Ra3 {[%emt 0:01:30]} Ne2+ {[%emt 0:08:47]} 29. Nxe2 {[%emt 0:00:03]} Rxe2 {[%emt 0:00:06]} 30. f4 {[%emt 0:00:28]} Rbb2 {[%emt 0:00:03]} 31. Rg3+ {[%emt 0:00:05]} Kf7 {[%emt 0:00:02]} 32. Ra1 {[%emt 0:03:15]} Rxa2 {[%emt 0:02:19]} 33. Rb1 {[%emt 0:01:30]} Ke6 {[%emt 0:00:26]} 34. Rg7 {[%emt 0:02:38]} h5 {[%emt 0:01:38]} 35. h3 {[%emt 0:01:16]} h4 {[%emt 0:01:04]} 36. f5+ {[%emt 0:01:30]} Kxf5 {[%emt 0:00:22]} 37. Rg4 {[%emt 0:00:32]} Ke6 {[%emt 0:04:17]} 38. Rb6+ {[%emt 0:00:12]} Kf5 {[%emt 0:00:32]} 39. Rb5 {[%emt 0:00:31]} Re1+ {[%emt 0:00:25]} 40. Kh2 {[%emt 0:00:00]} c3 {[%emt 0:00:00]} 41. Rxd5+ {[%emt 0:03:14]} Ke6 {[%emt 0:01:20]} 42. Rc5 {[%emt 0:00:19]} c2 {[%emt 0:01:23]} 43. d5+ {[%emt 0:01:13]} Ke5 {[%emt 0:04:03]} 44. Rgc4 {[%emt 0:08:06]} Raa1 {[%emt 0:00:38]} 45. d6+ {[%emt 0:00:25]} Kxd6 {[%emt 0:01:00]} 46. Rc6+ {[%emt 0:00:16]} Kd7 {[%emt 0:00:23]} 47. Rc7+ {[%emt 0:00:08]} Ke6 {[%emt 0:00:07]} 48. R7c6+ {[%emt 0:01:24]} Kf7 {[%emt 0:00:43]} 49. Rc7+ {[%emt 0:00:17]} Kg6 {[%emt 0:00:22]} 50. Rg4+ {[%emt 0:01:42]} Kf5 {[%emt 0:00:16]} 51. Rc5+ {[%emt 0:00:13]} Ke6 {[%emt 0:00:09]} 0-1